bitfinex-derivatives/quotes_BTCF0:USTF0_20250830
["timestamp","ask_amount","ask_price","bid_price","bid_amount"]
[1756512001327,0.07791717,108430.0,108420.0,0.67403]
[1756512001526,0.005,108430.0,108420.0,0.67403]
[1756512003321,0.38643,108470.0,108460.0,0.02551]
[1756512003521,0.4228,108470.0,108460.0,0.06335]
[1756512004424,0.4318,108470.0,108460.0,0.06435]
[1756512004725,0.4378,108470.0,108460.0,0.06435]
[1756512005727,0.6878,108470.0,108460.0,0.001]
[1756512006124,0.6878,108470.0,108440.0,0.03784]
[1756512006326,0.02563,108440.0,108430.0,0.74011]
[1756512006629,0.062,108440.0,108430.0,1.3532869]
[1756512007124,0.062,108440.0,108430.0,1.26107]
[1756512007429,0.062,108440.0,108430.0,0.42415]
[1756512007730,0.063,108440.0,108430.0,1.26103]
[1756512008431,0.063,108440.0,108430.0,1.3532469]
[1756512008831,0.3608,108450.0,108440.0,0.06335]
[1756512009028,0.3608,108450.0,108420.0,2.1146]
[1756512009238,0.3608,108440.0,108420.0,2.98932]
[1756512009622,0.6108,108440.0,108420.0,0.39864]
[1756512009934,0.3608,108430.0,108410.0,0.03784]
[1756512010135,0.3608,108430.0,108410.0,0.06335]
[1756512010630,0.3608,108440.0,108410.0,0.06335]
[1756512010935,0.3608,108430.0,108410.0,0.06335]
[1756512011441,0.3608,108420.0,108410.0,0.06335]
[1756512012030,0.6108,108420.0,108410.0,0.02551]
[1756512012629,0.6108,108420.0,108410.0,0.06335]
[1756512013729,0.6108,108420.0,108410.0,0.02551]
[1756512013929,0.6108,108420.0,108400.0,0.90023]
[1756512014130,0.3608,108420.0,108400.0,0.90023]
[1756512014736,0.3608,108410.0,108400.0,0.90023]
[1756512015036,0.3608,108410.0,108400.0,0.06335]
[1756512015236,0.3608,108410.0,108400.0,0.06435]
[1756512015431,0.3608,108410.0,108400.0,0.06535]
[1756512016037,0.3608,108410.0,108400.0,0.06435]
[1756512016337,0.3608,108410.0,108400.0,0.06535]
[1756512017239,0.6108,108410.0,108400.0,0.002]
[1756512017538,0.6108,108410.0,108400.0,0.001]
[1756512017838,0.6108,108410.0,108400.0,0.002]
[1756512021241,0.4184115,108410.0,108400.0,0.002]
[1756512023540,0.25,108410.0,108400.0,0.002]
[1756512023736,0.6108,108410.0,108400.0,0.002]
[1756512025043,0.68336919,108410.0,108400.0,0.002]
[1756512026846,0.68336919,108410.0,108400.0,0.00661]
[1756512030242,0.78336919,108410.0,108400.0,0.00661]
[1756512031344,0.78336919,108410.0,108370.0,0.08386747]
[1756512031642,0.3608,108380.0,108370.0,0.08386747]
[1756512032744,0.3608,108380.0,108370.0,0.08886747]
[1756512033247,0.3928914,108380.0,108370.0,0.08886747]
[1756512033450,0.3928914,108380.0,108370.0,0.06835]
[1756512033643,0.3928914,108380.0,108370.0,0.08889546]
[1756512034247,0.3928914,108380.0,108370.0,0.09189546]
[1756512034946,0.3928914,108380.0,108370.0,0.08889546]
[1756512035150,0.3928914,108380.0,108370.0,0.07135]
[1756512038248,0.3928914,108380.0,108370.0,0.06935]
[1756512039149,0.3928914,108380.0,108370.0,0.06635]
[1756512042655,0.0320914,108380.0,108370.0,0.06635]
[1756512042846,0.37951297,108390.0,108370.0,0.06635]
[1756512043050,0.40654096,108390.0,108370.0,0.06635]
[1756512043261,0.04574096,108390.0,108380.0,0.06335]
[1756512043553,0.01871297,108390.0,108380.0,0.08426309]
[1756512044053,0.04625886,108390.0,108380.0,0.08426309]
[1756512045955,0.04625886,108390.0,108380.0,0.08526309]
[1756512047550,0.68399318,108390.0,108380.0,0.02191309]
[1756512047744,0.68399318,108390.0,108380.0,0.02768]
[1756512047946,0.07319318,108390.0,108380.0,0.08520785]
[1756512048142,0.04625886,108390.0,108380.0,0.08520785]
[1756512049047,0.65705886,108390.0,108380.0,0.02185785]
[1756512049248,0.68370454,108390.0,108380.0,0.02185785]
[1756512049755,0.68370454,108390.0,108380.0,0.08520785]
[1756512049954,0.43370454,108390.0,108380.0,0.08520785]
[1756512052459,0.26321912,108390.0,108380.0,0.08520785]
[1756512054360,0.29206065,108390.0,108380.0,0.08520785]
[1756512057860,0.05548721,108390.0,108380.0,0.44600785]
[1756512060759,0.05548721,108390.0,108380.0,0.69600785]
[1756512061964,0.02884153,108390.0,108380.0,0.69600785]
[1756512062264,0.37947818,108400.0,108380.0,0.65933785]
[1756512062466,0.40597742,108400.0,108390.0,0.06373]
[1756512062863,0.43365759,108400.0,108390.0,0.06373]
[1756512064262,0.43465759,108400.0,108390.0,0.06373]
[1756512066767,0.40815835,108400.0,108390.0,0.06373]
[1756512067669,0.65815835,108400.0,108380.0,0.04529785]
[1756512067868,0.3608,108390.0,108380.0,0.04529785]
[1756512069068,1.20624,108390.0,108380.0,0.04629785]
[1756512069657,1.20624,108390.0,108380.0,0.001]
[1756512069863,1.48268033,108390.0,108380.0,0.001]
[1756512070059,1.45624,108390.0,108380.0,0.001]
[1756512071369,0.6108,108390.0,108380.0,0.001]
[1756512071570,1.45616,108390.0,108380.0,0.001]
[1756512071872,1.57405892,108390.0,108370.0,0.06373]
[1756512072073,1.20608,108380.0,108370.0,0.06373]
[1756512072970,1.20608,108380.0,108370.0,0.02444]
[1756512073166,1.20608,108380.0,108370.0,0.02544]
[1756512075074,1.20608,108380.0,108370.0,0.02444]
[1756512075274,1.20608,108380.0,108370.0,0.02544]
[1756512077067,1.20608,108380.0,108370.0,0.001]
[1756512077272,1.20608,108380.0,108370.0,0.02544]
[1756512077472,1.20608,108380.0,108370.0,0.001]
[1756512077971,1.20608,108380.0,108370.0,0.02544]
[1756512079075,1.225013,108380.0,108370.0,0.02544]
[1756512080284,1.225013,108380.0,108370.0,0.001]
[1756512080483,1.225013,108380.0,108370.0,0.02544]
[1756512080786,1.225013,108380.0,108370.0,0.001]
[1756512086589,1.225013,108380.0,108370.0,0.02544]
[1756512086888,1.225013,108380.0,108370.0,0.001]
[1756512090696,1.501124,108380.0,108370.0,0.001]
[1756512091694,1.502124,108380.0,108370.0,0.001]
[1756512091895,1.476013,108380.0,108370.0,0.001]
[1756512092287,1.60212139,108380.0,108350.0,0.02054178]
[1756512092489,0.3608,108360.0,108350.0,0.02054178]
[1756512092689,1.22538918,108360.0,108350.0,0.02054178]
[1756512093295,1.22538918,108360.0,108350.0,0.04455178]
[1756512093496,1.22538918,108360.0,108350.0,0.04755178]
[1756512093996,1.22562918,108360.0,108350.0,0.04555178]
[1756512094195,1.22562918,108360.0,108350.0,0.02701]
[1756512094794,0.37966918,108360.0,108350.0,0.02701]
[1756512094993,1.08298918,108360.0,108350.0,0.02701]
[1756512095193,1.08298918,108360.0,108350.0,0.06536]
[1756512095595,1.08298918,108360.0,108350.0,0.06636]
[1756512096299,1.08498918,108360.0,108350.0,0.06236]
[1756512096597,1.08598918,108360.0,108350.0,0.06236]
[1756512098201,0.38266918,108360.0,108350.0,0.06236]
[1756512098504,1.22858918,108360.0,108350.0,0.06236]
[1756512099698,0.38266918,108360.0,108350.0,0.06236]
[1756512100006,1.08786918,108360.0,108350.0,0.06236]
[1756512100705,1.22818918,108360.0,108350.0,0.06236]
[1756512102105,1.22818918,108360.0,108340.0,0.06236]
[1756512103406,1.22518918,108360.0,108340.0,0.06236]
[1756512107506,0.3608,108350.0,108340.0,0.02401]
[1756512107706,0.3608,108350.0,108340.0,0.02862]
[1756512108211,0.3608,108350.0,108340.0,0.00461]
[1756512108599,0.86658918,108360.0,108340.0,0.02862]
[1756512108801,1.22738918,108360.0,108340.0,0.42777]
[1756512109003,1.22738918,108360.0,108340.0,0.06697]
[1756512109004,0.3608,108350.0,108340.0,0.06697]
[1756512109211,0.72436,108350.0,108340.0,0.06697]
[1756512109408,0.62314398,108360.0,108340.0,0.06697]
[1756512109709,1.23398918,108360.0,108350.0,0.06236]
[1756512111214,1.23598918,108360.0,108350.0,0.06236]
[1756512111607,1.23598918,108360.0,108350.0,0.02401]
[1756512111916,1.23698918,108360.0,108350.0,0.02401]
[1756512113308,0.38266918,108360.0,108350.0,0.02401]
[1756512113511,1.20186918,108360.0,108350.0,0.08270001]
[1756512113715,1.20186918,108360.0,108350.0,0.04435001]
[1756512115811,0.84106918,108360.0,108350.0,0.04435001]
[1756512116014,1.20186918,108360.0,108350.0,0.04435001]
[1756512117213,1.20186918,108360.0,108340.0,0.42777]
[1756512118320,1.20086918,108360.0,108340.0,0.42777]
[1756512119324,1.22693512,108360.0,108340.0,0.02862]
[1756512120420,0.40773512,108360.0,108340.0,0.06697]
[1756512120619,0.85336,108350.0,108340.0,0.06697]
[1756512122115,0.85316,108350.0,108340.0,0.06697]
[1756512123320,0.85288,108350.0,108340.0,0.06697]
[1756512123523,0.92588808,108350.0,108340.0,0.06697]
[1756512125224,0.92612808,108350.0,108340.0,0.06697]
[1756512126720,0.92612808,108350.0,108340.0,0.02862]
[1756512126925,0.92612808,108350.0,108340.0,0.06682]
[1756512128825,0.92612808,108350.0,108340.0,0.02862]
[1756512129125,0.92612808,108350.0,108340.0,0.06682]
[1756512130830,0.07300808,108350.0,108340.0,0.06682]
[1756512131128,0.85336,108350.0,108340.0,0.06682]
[1756512132831,0.92844959,108350.0,108340.0,0.06682]
[1756512133035,0.07508959,108350.0,108340.0,0.06682]
[1756512133224,0.71396,108360.0,108340.0,0.63942]
[1756512133429,0.002,108360.0,108350.0,0.42394]
[1756512133627,0.002,108360.0,108350.0,0.53716757]
[1756512133831,0.002,108360.0,108350.0,0.69489057]
[1756512134935,0.002,108360.0,108350.0,0.69950057]
[1756512135527,0.003,108360.0,108350.0,0.69950057]
[1756512139243,0.02202027,108360.0,108350.0,0.08870057]
[1756512139942,0.02202027,108360.0,108350.0,0.05050057]
[1756512140245,0.63282027,108360.0,108350.0,0.05050057]
[1756512140639,0.63282027,108360.0,108350.0,0.08870057]
[1756512143244,0.38282027,108360.0,108350.0,0.08870057]
[1756512144048,0.38282027,108360.0,108350.0,0.05050057]
[1756512144346,0.63282027,108360.0,108350.0,0.02556057]
[1756512145850,0.63282027,108360.0,108350.0,0.05050057]
[1756512149040,1.49170027,108360.0,108350.0,0.05050057]
[1756512149850,0.63282027,108360.0,108350.0,0.05050057]
[1756512150050,1.49150027,108360.0,108350.0,0.05050057]
[1756512150443,1.49134027,108360.0,108350.0,0.05050057]
[1756512151750,0.63282027,108360.0,108350.0,0.05050057]
[1756512151949,1.49118027,108360.0,108350.0,0.08555057]
[1756512152449,0.27202027,108360.0,108350.0,0.08555057]
[1756512152650,0.02202027,108360.0,108350.0,0.44635057]
[1756512158760,0.003,108360.0,108350.0,0.44635057]
[1756512163465,1.06077411,108370.0,108350.0,0.44635057]
[1756512163663,0.87649365,108370.0,108360.0,0.0581]
[1756512164865,0.87649365,108370.0,108360.0,0.06271]
[1756512164866,0.87749365,108370.0,108360.0,0.06271]
[1756512165666,1.23929365,108370.0,108360.0,0.06271]
[1756512167562,1.51507156,108370.0,108360.0,0.00461]
[1756512169867,1.51507156,108370.0,108360.0,0.02766]
[1756512170666,1.51507156,108370.0,108360.0,0.06271]
[1756512170868,0.04611156,108370.0,108360.0,0.42351]
[1756512171064,0.87665365,108370.0,108360.0,0.42351]
[1756512171267,0.02233365,108370.0,108360.0,0.67351]
[1756512172663,0.018933,108380.0,108370.0,0.0581]
[1756512172870,0.018933,108380.0,108370.0,0.4189]
[1756512173062,0.85628,108390.0,108380.0,0.0581]
[1756512173261,0.85628,108390.0,108380.0,0.4189]
[1756512173465,2.14760017,108400.0,108380.0,0.4189]
[1756512173665,3.00996017,108400.0,108390.0,0.0581]
[1756512173866,2.64916017,108400.0,108390.0,0.4189]
[1756512174068,2.64916017,108400.0,108390.0,0.0581]
[1756512174670,2.65316017,108400.0,108390.0,0.0581]
[1756512174859,2.65296017,108400.0,108390.0,0.0581]
[1756512175063,2.65896017,108400.0,108390.0,0.0581]
[1756512176369,2.65896017,108400.0,108390.0,0.02305]
[1756512177361,2.65896017,108400.0,108390.0,0.0581]
[1756512181277,2.65896017,108400.0,108390.0,0.02305]
[1756512183180,2.65896017,108400.0,108380.0,0.39522]
[1756512183381,0.01077,108390.0,108380.0,0.41859]
[1756512185077,0.01477,108390.0,108380.0,0.41859]
[1756512186178,0.01477,108390.0,108380.0,0.4232]
[1756512186883,0.01777,108390.0,108380.0,0.4232]
[1756512188686,2.46423059,108400.0,108390.0,0.03442]
[1756512189283,2.46423059,108400.0,108390.0,0.05779]
[1756512190081,2.48516635,108400.0,108390.0,0.05779]
[1756512190283,2.49216635,108400.0,108390.0,0.05779]
[1756512191387,1.63596635,108400.0,108390.0,0.05779]
[1756512191589,2.49024635,108400.0,108390.0,0.05779]
[1756512192688,0.02793576,108400.0,108390.0,0.41859]
[1756512194686,0.88789576,108400.0,108390.0,0.41859]
[1756512198190,0.88761576,108400.0,108390.0,0.41859]
[1756512200294,0.88361576,108400.0,108390.0,0.41859]
[1756512200493,0.88461576,108400.0,108390.0,0.41859]
[1756512200694,0.88161576,108400.0,108390.0,0.41859]
[1756512200894,0.88261576,108400.0,108390.0,0.41859]
[1756512201795,0.88361576,108400.0,108390.0,0.41859]
[1756512202994,0.02393576,108400.0,108390.0,0.41859]
[1756512203190,0.88269576,108400.0,108390.0,0.41859]
[1756512204295,0.88069576,108400.0,108390.0,0.41859]
[1756512204488,0.88069576,108400.0,108390.0,0.41959]
[1756512205294,0.88069576,108400.0,108390.0,0.4242]
[1756512205490,0.02193576,108400.0,108390.0,0.4242]
[1756512205696,0.88053576,108400.0,108390.0,0.4242]
[1756512205897,0.02293576,108400.0,108390.0,0.4232]
[1756512206897,0.02193576,108400.0,108390.0,0.4232]
[1756512207092,0.02193576,108400.0,108390.0,0.4242]
[1756512207399,0.02293576,108400.0,108390.0,0.4242]
[1756512207695,0.02293576,108400.0,108390.0,0.6742]
[1756512208096,0.02193576,108400.0,108390.0,0.6742]
[1756512209403,0.02193576,108400.0,108390.0,0.6732]
[1756512209601,0.02193576,108400.0,108390.0,0.6742]
[1756512211893,0.07256919,108410.0,108390.0,0.6742]
[1756512212103,0.84200172,108430.0,108400.0,0.38584]
[1756512212305,0.03889,108420.0,108410.0,0.44312247]
[1756512212893,0.06022215,108420.0,108410.0,0.44312247]
[1756512213699,0.06222215,108420.0,108410.0,0.44312247]
[1756512214812,0.08159284,108420.0,108410.0,0.42283]
[1756512215216,0.08159284,108420.0,108400.0,0.02504]
[1756512215217,0.67701031,108420.0,108400.0,0.02504]
[1756512215514,0.0603,108390.0,108380.0,0.40624855]
[1756512216311,0.0603,108390.0,108380.0,0.04544855]
[1756512217114,0.0603,108390.0,108380.0,0.04844855]
[1756512217414,0.0603,108390.0,108380.0,0.08543855]
[1756512217813,0.0603,108390.0,108380.0,0.08743855]
[1756512219616,0.4211,108390.0,108380.0,0.08743855]
[1756512220210,0.6711,108390.0,108380.0,0.03004]
[1756512220410,1.52814,108390.0,108380.0,0.03004]
[1756512222820,1.52814,108390.0,108380.0,0.005]
[1756512223319,1.55363916,108390.0,108360.0,0.03699]
[1756512223519,0.4211,108370.0,108360.0,0.06203]
[1756512223715,0.43965869,108370.0,108360.0,0.06203]
[1756512224116,0.43965869,108370.0,108360.0,0.02504]
[1756512224319,1.54625869,108370.0,108350.0,0.05794057]
[1756512224619,0.0603,108360.0,108350.0,0.44298057]
[1756512226316,0.13374414,108360.0,108350.0,0.44398057]
[1756512226519,0.0603,108360.0,108350.0,0.44398057]
[1756512227021,0.0603,108360.0,108350.0,0.08398057]
[1756512227217,0.0613,108360.0,108350.0,0.08398057]
[1756512230621,0.02425,108360.0,108350.0,0.08398057]
[1756512230925,0.001,108360.0,108350.0,0.69478057]
[1756512231326,0.001,108360.0,108350.0,1.55094057]
[1756512235228,0.07522652,108360.0,108350.0,1.55094057]
[1756512237725,0.37952614,108380.0,108350.0,1.68321847]
[1756512237927,0.04197614,108380.0,108370.0,0.06203]
[1756512238129,0.07902614,108380.0,108370.0,0.06203]
[1756512239431,0.15196227,108380.0,108370.0,0.06203]
[1756512240224,0.15396227,108380.0,108370.0,0.06203]
[1756512240429,0.15596227,108380.0,108370.0,0.06203]
[1756512241232,0.76676227,108380.0,108370.0,0.02504]
[1756512242933,0.76676227,108380.0,108370.0,0.08252952]
[1756512244635,0.76676227,108380.0,108370.0,0.06161]
[1756512247539,0.76676227,108380.0,108370.0,0.02504]
[1756512248742,1.62148227,108380.0,108370.0,0.02504]
[1756512254947,0.06366,108370.0,108360.0,0.06033]
[1756512255148,0.06366,108370.0,108360.0,0.08051014]
[1756512256542,0.06466,108370.0,108360.0,0.08051014]
[1756512257148,0.001,108370.0,108360.0,0.69131014]
[1756512257944,0.002,108370.0,108360.0,0.69131014]
[1756512258649,0.002,108370.0,108360.0,0.69035183]
[1756512259451,0.002,108370.0,108360.0,1.54647183]
[1756512259653,0.001,108370.0,108360.0,1.54647183]
[1756512259846,0.09197681,108380.0,108360.0,1.51086014]
[1756512260052,0.11784681,108380.0,108370.0,0.38456]
[1756512260649,0.11784681,108380.0,108370.0,0.42113]
[1756512261252,0.15563681,108380.0,108370.0,0.42113]
[1756512262560,0.76643681,108380.0,108370.0,0.02376]
[1756512263047,0.76643681,108380.0,108360.0,0.41955014]
[1756512263048,1.62219681,108380.0,108360.0,0.41955014]
[1756512263350,0.06266,108370.0,108360.0,0.44131014]
[1756512263656,0.06266,108370.0,108360.0,0.02018014]
[1756512264044,0.31266,108370.0,108360.0,0.02018014]
[1756512264257,0.06266,108370.0,108360.0,0.04394014]
[1756512264451,0.06366,108370.0,108360.0,0.04394014]
[1756512264947,0.06366,108370.0,108360.0,0.08051014]
[1756512265357,0.31366,108370.0,108360.0,0.04394014]
[1756512269652,0.31366,108370.0,108360.0,0.02018014]
[1756512271251,0.31366,108370.0,108360.0,0.04394014]
[1756512271649,0.31366,108370.0,108360.0,0.08037014]
[1756512271847,0.06366,108370.0,108360.0,0.08037014]
[1756512272355,0.06366,108370.0,108360.0,0.44117014]
[1756512274054,0.06366,108370.0,108360.0,0.08037014]
[1756512279853,0.06366,108370.0,108360.0,0.44117014]
[1756512282664,0.06366,108370.0,108360.0,0.08037014]
[1756512286367,0.31366,108370.0,108360.0,0.04394014]
[1756512286562,0.67446,108370.0,108360.0,0.04394014]
[1756512287361,0.67446,108370.0,108350.0,0.03643]
[1756512287667,0.42303,108360.0,108350.0,0.04592948]
[1756512288558,0.42303,108360.0,108350.0,0.08235948]
[1756512289069,0.42303,108360.0,108350.0,0.08335948]
[1756512290969,0.42303,108360.0,108350.0,0.02188948]
[1756512291174,0.67303,108360.0,108350.0,0.02188948]
[1756512292164,0.67303,108360.0,108350.0,0.001]
[1756512294764,0.48651741,108360.0,108350.0,0.001]
[1756512296066,1.33851741,108360.0,108350.0,0.001]
[1756512298875,0.48651741,108360.0,108350.0,0.02604]
[1756512299069,1.33795741,108360.0,108350.0,0.06247]
[1756512299265,0.91363,108360.0,108350.0,0.06247]
[1756512299467,0.06223,108360.0,108350.0,0.42327]
[1756512300370,0.02334,108360.0,108350.0,0.67327]
[1756512301375,0.06167,108360.0,108350.0,0.67327]
[1756512302677,0.08150811,108370.0,108360.0,0.06147]
[1756512302971,0.04317811,108370.0,108360.0,0.42227]
[1756512304876,0.04417811,108370.0,108360.0,0.42227]
[1756512305868,0.02003811,108370.0,108360.0,0.44245128]
[1756512307380,0.02003811,108370.0,108360.0,0.44345128]
[1756512307582,0.04417811,108370.0,108360.0,0.44345128]
[1756512307881,0.04317811,108370.0,108360.0,0.44345128]
[1756512308781,0.08150811,108370.0,108360.0,0.44345128]
[1756512309081,0.04317811,108370.0,108360.0,0.44345128]
[1756512309583,0.08150811,108370.0,108360.0,0.44345128]
[1756512311377,0.33150811,108370.0,108360.0,0.44345128]
[1756512311580,0.33150811,108370.0,108360.0,0.02682]
[1756512311878,1.3590992,108370.0,108360.0,0.02682]
[1756512312076,1.3781992,108370.0,108360.0,0.02682]
[1756512312581,1.3791992,108370.0,108360.0,0.06247]
[1756512312781,1.3791992,108370.0,108360.0,0.02682]
[1756512313083,1.3791992,108370.0,108360.0,0.02582]
[1756512313884,1.3811992,108370.0,108360.0,0.02582]
[1756512314084,1.3941392,108370.0,108360.0,0.02582]
[1756512314686,0.03104,108360.0,108350.0,0.69107]
[1756512314881,0.04976015,108360.0,108350.0,0.7936908]
[1756512315483,0.04976015,108360.0,108350.0,0.5248908]
[1756512316089,0.85392,108370.0,108350.0,0.5248908]
[1756512316488,0.85392,108370.0,108350.0,0.1640908]
[1756512316489,1.21472,108370.0,108350.0,0.1640908]
[1756512316687,0.3638,108370.0,108350.0,0.1640908]
[1756512316883,0.85068,108360.0,108350.0,0.1640908]
[1756512317087,0.87068068,108360.0,108350.0,0.1640908]
[1756512317489,0.86968068,108360.0,108350.0,0.1640908]
[1756512318095,0.87368068,108360.0,108350.0,0.1640908]
[1756512319796,0.87568068,108360.0,108350.0,0.1640908]
[1756512320394,0.02500068,108360.0,108350.0,0.1640908]
[1756512320595,0.87508068,108360.0,108350.0,0.1640908]
[1756512321997,0.02500068,108360.0,108350.0,0.1640908]
[1756512322201,0.87504068,108360.0,108350.0,0.1640908]
[1756512322498,0.87492068,108360.0,108350.0,0.1640908]
[1756512323800,0.02500068,108360.0,108350.0,0.1640908]
[1756512323991,0.87508068,108360.0,108350.0,0.1640908]
[1756512324998,0.87504068,108360.0,108350.0,0.5248908]
[1756512325892,0.02500068,108360.0,108350.0,0.5248908]
[1756512326094,0.02500068,108360.0,108350.0,0.7748908]
[1756512327199,0.02300068,108360.0,108350.0,0.7748908]
[1756512333294,0.02200068,108360.0,108350.0,0.7748908]
[1756512334100,0.02000068,108360.0,108350.0,0.7748908]
[1756512339408,0.78774681,108380.0,108370.0,0.02541]
[1756512339601,0.78774681,108380.0,108370.0,0.06503]
[1756512339800,1.14854681,108380.0,108370.0,0.06503]
[1756512340899,1.15254681,108380.0,108370.0,0.06503]
[1756512342004,0.46314681,108380.0,108370.0,0.06503]
[1756512342206,0.95246681,108380.0,108370.0,0.42583]
[1756512342405,0.95246681,108380.0,108370.0,0.06503]
[1756512342803,0.10434681,108380.0,108370.0,0.06503]
[1756512343008,0.10189681,108380.0,108370.0,0.5284508]
[1756512343202,0.09797681,108380.0,108370.0,0.5284508]
[1756512343507,0.10189681,108380.0,108370.0,0.5284508]
[1756512344901,0.09797681,108380.0,108370.0,0.5284508]
[1756512345302,0.10189681,108380.0,108370.0,0.5284508]
[1756512345502,0.10334681,108380.0,108370.0,0.5284508]
[1756512345811,0.09934681,108380.0,108370.0,0.5284508]
[1756512346108,0.10134681,108380.0,108370.0,0.5284508]
[1756512356018,0.09889681,108380.0,108370.0,0.5284508]
[1756512356817,0.10134681,108380.0,108370.0,0.5284508]
[1756512357719,0.09889681,108380.0,108370.0,0.5284508]
[1756512359220,0.10134681,108380.0,108370.0,0.42583]
[1756512359821,0.09889681,108380.0,108370.0,0.42583]
[1756512361023,0.09497681,108380.0,108370.0,0.42583]
[1756512361620,0.09734681,108380.0,108370.0,0.42583]
[1756512361828,0.09882681,108380.0,108370.0,0.42583]
[1756512362830,0.09734681,108380.0,108370.0,0.42583]
[1756512363125,0.09882681,108380.0,108370.0,0.42583]
[1756512363627,0.09734681,108380.0,108370.0,0.42583]
[1756512363829,0.09497681,108380.0,108370.0,0.42583]
[1756512367736,0.09734681,108380.0,108370.0,0.42583]
[1756512369332,0.09497681,108380.0,108370.0,0.42583]
[1756512370737,0.09497681,108380.0,108370.0,0.5284508]
[1756512377646,0.09681203,108380.0,108370.0,0.5284508]
[1756512378456,0.70909203,108380.0,108370.0,0.1676508]
[1756512378748,0.73458621,108380.0,108370.0,0.06503]
[1756512379343,0.70909203,108380.0,108370.0,0.06503]
[1756512380548,0.73456759,108380.0,108370.0,0.06503]
[1756512381441,0.70909203,108380.0,108370.0,0.02541]
[1756512384749,0.70909203,108380.0,108370.0,0.06169]
[1756512385050,1.55649203,108380.0,108370.0,0.06169]
[1756512387543,0.70909203,108380.0,108370.0,0.06169]
[1756512387749,1.55653203,108380.0,108370.0,0.06169]
[1756512388249,0.70909203,108380.0,108370.0,0.06169]
[1756512388448,1.55653203,108380.0,108370.0,0.06169]
[1756512391655,0.70909203,108380.0,108370.0,0.06169]
[1756512391849,1.55653203,108380.0,108370.0,0.06169]
[1756512392649,0.70909203,108380.0,108370.0,0.06169]
[1756512392850,1.55653203,108380.0,108370.0,0.06169]
[1756512393449,0.34829203,108380.0,108370.0,0.06169]
[1756512393659,0.94573203,108380.0,108370.0,0.5251108]
[1756512398758,0.09829203,108380.0,108370.0,0.5251108]
[1756512398958,0.94573203,108380.0,108370.0,0.5251108]
[1756512405768,1.30653203,108380.0,108370.0,0.1643108]
[1756512407574,1.30653203,108380.0,108370.0,0.1026208]
[1756512408075,1.33200493,108380.0,108370.0,0.1274708]
[1756512410276,1.33200493,108380.0,108370.0,0.1026208]
[1756512412576,1.33200493,108380.0,108370.0,0.1274708]
[1756512412777,1.33200493,108380.0,108370.0,0.1651008]
[1756512413074,1.33192493,108380.0,108370.0,0.1651008]
[1756512413680,1.33192493,108380.0,108370.0,0.1274708]
[1756512415971,1.33192493,108380.0,108370.0,0.1651008]
[1756512419191,1.33192493,108380.0,108370.0,0.06248]
[1756512420284,0.01894255,108380.0,108370.0,0.06248]
[1756512420481,0.86626255,108380.0,108370.0,0.5259008]
[1756512422583,0.01894255,108380.0,108370.0,0.5259008]
[1756512423085,0.86622255,108380.0,108370.0,0.5259008]
[1756512423286,0.94185956,108380.0,108370.0,0.5259008]
[1756512423983,0.09457956,108380.0,108370.0,0.5259008]
[1756512424184,0.94185956,108380.0,108370.0,0.5259008]
[1756512424385,0.94181956,108380.0,108370.0,0.5259008]
[1756512424588,0.09457956,108380.0,108370.0,0.5259008]
[1756512424984,0.85457956,108380.0,108370.0,0.5259008]
[1756512427788,0.09457956,108380.0,108370.0,0.5259008]
[1756512427992,0.94177956,108380.0,108370.0,0.5259008]
[1756512438200,0.09457956,108380.0,108370.0,0.5259008]
[1756512438392,0.09457956,108380.0,108370.0,0.7759008]
[1756512438586,1.75528,108410.0,108370.0,0.63565]
[1756512438792,0.77903824,108400.0,108390.0,0.41932]
[1756512439296,0.01995824,108400.0,108390.0,0.43241124]
[1756512439595,0.86703824,108400.0,108390.0,0.43241124]
[1756512440190,0.86903824,108400.0,108390.0,0.43241124]
[1756512440698,0.87083824,108400.0,108390.0,0.43241124]
[1756512440994,0.86783824,108400.0,108390.0,0.43241124]
[1756512441200,0.02275824,108400.0,108390.0,0.43241124]
[1756512441390,0.86979824,108400.0,108390.0,0.43241124]
[1756512441591,0.94334071,108400.0,108390.0,0.43241124]
[1756512441795,0.94334071,108400.0,108390.0,0.68241124]
[1756512441796,0.07554247,108400.0,108390.0,0.68241124]
[1756512442991,0.07454247,108400.0,108390.0,0.68241124]
[1756512443395,0.07354247,108400.0,108390.0,0.68241124]
[1756512443695,0.00208,108410.0,108400.0,0.03507]
[1756512443896,0.00208,108410.0,108400.0,0.41932]
[1756512444094,0.00208,108410.0,108400.0,0.43241124]
[1756512444795,0.00208,108410.0,108400.0,0.07161124]
[1756512445195,0.00308,108410.0,108400.0,0.07161124]
[1756512445895,0.07837164,108410.0,108400.0,0.07161124]
[1756512446100,0.00408,108410.0,108400.0,0.07161124]
[1756512447193,0.25328,108410.0,108390.0,0.38122286]
[1756512447396,1.27002,108400.0,108390.0,0.04391285]
[1756512447589,1.2883853,108400.0,108380.0,0.02058305]
[1756512447896,0.4231,108390.0,108380.0,0.04403305]
[1756512448296,0.6731,108390.0,108380.0,0.04403305]
[1756512449702,0.6731,108390.0,108380.0,0.04603305]
[1756512450101,0.74717316,108390.0,108380.0,0.04603305]
[1756512450600,0.74717316,108390.0,108380.0,0.04703305]
[1756512450901,0.75017316,108390.0,108380.0,0.40025505]
[1756512451300,0.75217316,108390.0,108380.0,0.39925505]
[1756512452604,0.75217316,108390.0,108380.0,0.43607505]
[1756512453703,1.59905316,108390.0,108380.0,0.43607505]
[1756512454703,1.59901316,108390.0,108380.0,0.43607505]
[1756512457906,0.75217316,108390.0,108380.0,0.43607505]
[1756512458106,1.59901316,108390.0,108380.0,0.43607505]
[1756512459908,1.59901316,108390.0,108380.0,0.08085305]
[1756512460208,1.59901316,108390.0,108380.0,0.43607505]
[1756512461306,1.59901316,108390.0,108380.0,0.415492]
[1756512462910,1.59901316,108390.0,108380.0,0.378672]
[1756512465113,1.59901316,108390.0,108370.0,0.18291999]
[1756512465319,0.02374,108370.0,108360.0,0.43686123]
[1756512465612,1.26746,108370.0,108360.0,0.416242]
[1756512466510,0.42066,108370.0,108360.0,0.416242]
[1756512466711,1.26746,108370.0,108360.0,0.416242]
[1756512467108,0.38454,108370.0,108360.0,0.43645871]
[1756512467306,0.01882571,108380.0,108370.0,0.06102]
[1756512467510,0.01882571,108380.0,108370.0,1.132264]
[1756512468017,0.01882571,108380.0,108370.0,0.777042]